Cogmind - Beta 15 *** ADVENTURER MODE // 2025.06.10 @ 19:29:54 Player: tcfire Result: Destroyed by G-47 Trooper with Particle Gun Performance ------------- Evolutions (2) 1000 Regions Visited (4) 800 Robots Destroyed (24) 120 Value Destroyed (617) 617 Prototype IDs (0) 0 Alien Tech Used (0) 0 Bonus (0) 0 TOTAL SCORE: 2537 Bonus ------- None Cogmind --------- Core Integrity 0/550 Matter 290/300 Energy 99/100 System Corruption 0% Temperature Cool (9) Movement Core (50) Location -8/Materials Parts ------- > --- POWER (1) -------- (None) > --- PROPULSION (3) --- (None) > --- UTILITY (4) ------ (None) > --- WEAPON (3) ------- Katana > --- INVENTORY (5) ---- Improved Heat Sink Large Battery (200) Subdweller Optics Seismic Detector Peak State ------------ > --- POWER ------------ Subdweller Power Source > --- PROPULSION ------- Aluminum Leg Makeshift Leg > --- UTILITY ---------- Small Storage Unit Sensor Array Scrap Shield > --- WEAPON ----------- Small Laser Small Laser Subdweller Beam Cannon > --- INVENTORY -------- Improved Heat Sink Large Battery Subdweller Optics Seismic Detector [Rating: 17] Favorites ----------- Power Light Ion Engine Engine Light Ion Engine Propulsion Aluminum Leg Leg Aluminum Leg Utility Small Storage Unit Device Sensor Array Storage Small Storage Unit Protection Scrap Shield Weapon Small Laser Energy Gun Small Laser Energy Cannon Beam Cannon Slashing Weapon Katana Build | -11 -10 -10 -10 -8 ------- Run | Yrd Mat Min Sub Mat Slots Evolved 4 | . . . . 4 Power . | . . . . . Propulsion 1 | . . . . 1 Utility 2 | . . . . 2 Weapon 1 | . . . . 1 Parts Attached 16 | 6 1 1 6 2 Power 3 | 1 . . 2 . Engine 3 | 1 . . 2 . Core . | . . . . . Reactor . | . . . . . Propulsion 4 | 2 . . 2 . Treads . | . . . . . Leg 4 | 2 . . 2 . Wheel . | . . . . . Hover . | . . . . . Flight . | . . . . . Utility 3 | 1 . 1 . 1 Device 1 | . . 1 . . Storage 1 | 1 . . . . Processor . | . . . . . Hackware . | . . . . . Protection 1 | . . . . 1 Artifact . | . . . . . Weapon 6 | 2 1 . 2 1 Energy Gun 3 | 2 . . 1 . Energy Cannon 2 | . 1 . 1 . Ballistic Gun . | . . . . . Ballistic Cannon . | . . . . . Launcher . | . . . . . Special Weapon . | . . . . . Impact Weapon . | . . . . . Slashing Weapon 1 | . . . . 1 Piercing Weapon . | . . . . . Special Melee Weapon . | . . . . . Unidentified Prototypes . | . . . . . Parts Lost 15 | . . 1 5 9 Power 3 | . . . 2 1 Propulsion 4 | . . . 2 2 Utility 3 | . . . . 3 Weapon 5 | . . 1 1 3 Highest Loss Streak 9 | . . 1 3 9 To Critical Strikes . | . . . . . Average Backups 5 | 1 4 6 5 4 Power . | . 1 1 . . Propulsion . | . . . . . Utility 3 | . 1 2 4 4 Weapon . | . 1 1 . . Tool/Special . | . . . . . Unused Backups 4 | . . . . 4 Power . | . . . . . Propulsion . | . . . . . Utility 4 | . . . . 4 Weapon . | . . . . . Tool/Special . | . . . . . Average Slot Usage (%) 87 | . 85 90 92 63 Engine 10 | . 14 14 10 7 Leg 24 | . 28 28 24 14 Device 10 | . . 10 14 6 Storage 13 | . 14 14 14 7 Protection 1 | . . . . 6 Energy Gun 15 | . 15 7 18 13 Energy Cannon 10 | . 12 14 9 7 Peak Build Rating 17 | 6 6 7 13 17 Average Rating 8 | 4 6 6 8 13 On Entrance 6 | . 6 6 7 13 Naked Turns 24 | . . . . 24 Heaviest Build 39 | 11 13 14 20 39 Greatest Support 30 | 20 20 20 30 30 Greatest Overweight (x) 1 | . . . 1 1 Average Overweight (x) . | . . . . . Largest Inventory Capacity 8 | 8 8 8 8 8 Average Capacity 7 | 6 8 8 8 7 Most Carried 8 | 5 6 7 8 5 Average Carried 5 | 2 4 6 6 4 Final Capacity 8 | 8 8 8 8 5 Final Carried 7 | 2 6 6 7 4 Class Distribution -------------------- 90% | Mutant 9% | Subdweller-Tank Dominant Class ---------------- Mutant | -10/Materials Mutant | -10/Mines Mutant | -10/Subcaves Subdweller-Tank | -8/Materials Resources | -11 -10 -10 -10 -8 ----------- Run | Yrd Mat Min Sub Mat Matter Collected 404 | 187 29 55 73 60 Remotely . | . . . . . Salvage Created 749 | . 60 159 340 190 Parts 50 | . 9 10 20 11 Haulers Intercepted . | . . . . . Recyclers Shooed 1 | . 1 . . . Parts Field Recycled . | . . . . . Retrieved Matter . | . . . . . Parts Self-Destructed 15 | . . . 15 . Prevented . | . . . . . Kills | -11 -10 -10 -10 -8 ------- Run | Yrd Mat Min Sub Mat Combat Hostiles Destroyed 21 | . 3 6 9 3 Guns 8 | . 2 1 4 1 Cannons 13 | . 1 5 5 2 Classes Destroyed 9 | . 2 3 2 2 Builder 1 | . . 1 . . Turret 2 | . . . 2 . Watcher 2 | . 1 . . 1 Swarmer 9 | . 3 3 3 . Grunt 1 | . . 1 . . Duelist 1 | . . . . 1 Sentry 2 | . . . . 2 Subdweller 6 | . . . 6 . Assembled 2 | . . 2 . . Best Kill Streak 4 | . 3 4 4 1 Combat Bots Only 3 | . 3 3 3 1 Max Kills in Single Turn 1 | . 1 1 1 1 Gunslinging . | . . . . . Exploded . | . . . . . Melee . | . . . . . Uniques/NPCs Destroyed . | . . . . . Combat | -11 -10 -10 -10 -8 -------- Run | Yrd Mat Min Sub Mat Hostile Shots Fired 240 | . 29 10 111 90 Missed 75 | . 11 2 48 14 Hits 165 | . 18 8 63 76 Melee 8 | . . 4 . 4 Projectile 157 | . 18 4 63 72 AOE 1 | . . . 1 . Critical Strikes 8 | . 1 . . 7 Damage Taken 1915 | . 116 111 536 1152 Core 727 | . 30 . 146 551 Absorbed by Shields . | . . . . . Ignored by Resistances 515 | . 36 31 165 283 Core Remaining (%) 64 | 100 . . 29 . Volleys Fired 76 | . 10 14 39 13 Largest 3 | . 2 2 2 3 Hottest 160 | . 100 100 120 160 Shots Fired 146 | . 20 20 73 33 Gun 84 | . 10 6 48 20 Cannon 62 | . 10 14 25 13 Launcher . | . . . . . Special . | . . . . . Kinetic . | . . . . . Thermal 130 | . 10 14 73 33 Explosive . | . . . . . Electromagnetic 16 | . 10 6 . . Robot Hit Streak 19 | . 2 8 19 5 Robot Miss Streak 3 | . 3 2 1 3 Penetration Max . | . . . . . Secondary Targets . | . . . . . Shots Hit Robots 89 | . 8 15 48 18 Core Hits 44 | . 4 9 23 8 Critical Kills . | . . . . . Critical Parts Destroyed . | . . . . . Critical Strikes 1 | . . 1 . . Corrupt 1 | . . 1 . . Melee Attacks 4 | . . . . 4 Impact . | . . . . . Slashing 4 | . . . . 4 Piercing . | . . . . . Sneak Attacks . | . . . . . Combat Hostiles . | . . . . . Follow-up Attacks . | . . . . . Damage Inflicted 1398 | . 138 252 675 333 Guns 578 | . 33 73 360 112 Cannons 817 | . 104 177 315 221 Explosions . | . . . . . Melee . | . . . . . Ramming 3 | . 1 2 . . Kinetic . | . . . . . Thermal 1289 | . 104 177 675 333 Explosive . | . . . . . Electromagnetic 106 | . 33 73 . . Impact . | . . . . . Slashing . | . . . . . Piercing . | . . . . . Highest Corruption 3 | . . 3 3 . Average Corruption 3 | . . 3 3 . Corruption Purged . | . . . . . Corruption Blocked . | . . . . . Effects 23 | . . 6 17 . Message Errors 4 | . . . 4 . Matter Fused 7 | . . 1 6 . Heat Flow Errors 3 | . . 1 2 . Energy Discharges 5 | . . 3 2 . Parts Rejected 1 | . . . 1 . Data Loss (major) 1 | . . 1 . . Alerts 1 | . . . 1 . Weapon Failures 1 | . . . 1 . Overload Shots . | . . . . . Overflow Damage 1 | . . . 1 . Projectiles 1 | . . . 1 . Explosions . | . . . . . Melee . | . . . . . Knockbacks . | . . . . . Impact . | . . . . . Kinetic . | . . . . . Secondary . | . . . . . Self-Inflicted Damage . | . . . . . Shots . | . . . . . Rammed . | . . . . . Targets Rammed 2 | . 1 1 . . Kicked 2 | . 1 1 . . Crushed . | . . . . . Highest Temperature 671 | . 118 296 160 671 Average Temperature 146 | . 44 91 61 272 Received Heat Transfer 1047 | . . . 309 738 Effects 9 | . . . . 9 Energy Bleed 1 | . . . . 1 Damage (minor) 2 | . . . . 2 Damage (major) 4 | . . . . 4 Damage (core) 2 | . . . . 2 Siege Activations . | . . . . . Martial Activations . | . . . . . Shielding Activations . | . . . . . Robots Disrupted . | . . . . . Combat Hostiles . | . . . . . Robots Corrupted . | . . . . . Combat Hostiles . | . . . . . Parts Fried . | . . . . . Impact Corruptions . | . . . . . Robots Melted . | . . . . . Combat Hostiles . | . . . . . Parts Melted 3 | . . . 3 . Heat Transferred 2629 | . 222 370 1491 546 Parts Sabotaged . | . . . . . Parts Stolen . | . . . . . Parts Stripped . | . . . . . Power Chain Reactions . | . . . . . Alert | -11 -10 -10 -10 -8 ------- Run | Yrd Mat Min Sub Mat Maximum Alert Level . | . . . . . Low Security (%) 100 | 100 100 100 . 100 Level 1 . | . . . . . Level 2 . | . . . . . Level 3 . | . . . . . Level 4 . | . . . . . Level 5 . | . . . . . High Security . | . . . . . Max Security . | . . . . . Peak Influence 84 | . 60 78 . 84 Initial 8 | . . 8 . . Average 16 | . 22 20 . 10 Influence Increases 510 | . 81 95 130 204 Destroy 0b10 Robot/C 300 | . 60 80 100 60 Destroy 0b10 Robot/NC 15 | . 5 5 . 5 Destroy Leader 54 | . 12 10 . 32 Successful Hack 4 | . 4 . . . Disable Machine 9 | . . . . 9 Destroy Structure 8 | . . . . 8 Lose Combat Pursuer 120 | . . . 30 90 Influence Decreases 426 | . 54 122 130 120 Entered New Map 19 | . . 19 . . Time Decay 318 | . 54 98 90 76 Lost Part 89 | . . 5 40 44 Squads Dispatched . | . . . . . Investigation . | . . . . . Extermination . | . . . . . Reinforcement . | . . . . . Assault . | . . . . . Garrison . | . . . . . Intercept . | . . . . . Searches Triggered . | . . . . . Construction Impeded . | . . . . . Haulers Reinforced . | . . . . . Active Scanning Responses . | . . . . . Cargo Convoy Interrupts . | . . . . . Stealth | -11 -10 -10 -10 -8 --------- Run | Yrd Mat Min Sub Mat Distress Signals 3 | . . 1 . 2 Communications Jammed . | . . . . . Distress Signals . | . . . . . Times Spotted 44 | . 9 5 17 13 Peak Tracking Total 10 | . 5 2 7 10 Tactical Retreats 4 | . . . 2 2 Traps | -11 -10 -10 -10 -8 ------- Run | Yrd Mat Min Sub Mat Traps Triggered . | . . . . . Indirectly . | . . . . . Trap Hack Attempts . | . . . . . Triggered . | . . . . . Disarmed . | . . . . . Reprogrammed . | . . . . . Reused . | . . . . . Traps Extracted . | . . . . . Installed . | . . . . . Triggered . | . . . . . Machines | -11 -10 -10 -10 -8 ---------- Run | Yrd Mat Min Sub Mat Machines Disabled 2 | . . . 1 1 Max in Single Turn 1 | . . . 1 1 Machines Repaired . | . . . . . Machines Dismantled . | . . . . . Machines Sabotaged . | . . . . . Overloaded Fab Kills . | . . . . . Hacking | -11 -10 -10 -10 -8 --------- Run | Yrd Mat Min Sub Mat Machines Accessed 5 | . 2 . 1 2 Terminals 4 | . 2 . . 2 Fabricators . | . . . . . Repair Stations . | . . . . . Recycling Units . | . . . . . Scanalyzers . | . . . . . Garrison Access . | . . . . . Total Hacks 12 | . 2 . 4 6 Successful 7 | . 2 . 4 1 Failed 5 | . . . . 5 Catastrophic . | . . . . . Database Lockouts . | . . . . . Manual 3 | . 2 . 1 . Terminals 8 | . 2 . . 6 Fabricators . | . . . . . Repair Stations . | . . . . . Recycling Units . | . . . . . Scanalyzers . | . . . . . Garrison Access . | . . . . . Terminal Hacks 5 | . . . 4 1 Record 4 | . . . 4 . Zone Layout 1 | . . . . 1 Fabricator Hacks . | . . . . . Repair Station Hacks . | . . . . . Recycling Unit Hacks . | . . . . . Scanalyzer . | . . . . . Garrison Access Hacks . | . . . . . Unauthorized Hacks 2 | . 2 . . . Terminals 2 | . 2 . . . Assimilate 1 | . 1 . . . Botnet 1 | . 1 . . . Fabricators . | . . . . . Repair Stations . | . . . . . Recycling Units . | . . . . . Scanalyzers . | . . . . . Garrison Access . | . . . . . Data Cores Recovered . | . . . . . Used . | . . . . . Hacking Detections 1 | . . . . 1 Full Trace Events 1 | . . . . 1 Feedback Events . | . . . . . Feedback Blocked . | . . . . . Robot Schematics Acquired . | . . . . . Robots Built . | . . . . . Authchips . | . . . . . Time . | . . . . . Total Robot Build Rating . | . . . . . Part Schematics Acquired . | . . . . . Parts Built . | . . . . . Authchips . | . . . . . Time . | . . . . . Total Part Build Rating . | . . . . . Parts Repaired . | . . . . . Time . | . . . . . Parts Recycled . | . . . . . Recycled Matter . | . . . . . Retrieved Matter . | . . . . . Retrieved Components . | . . . . . Parts Scanalyzed . | . . . . . Part Schematics Acquired . | . . . . . Parts Damaged . | . . . . . Bothacking | -11 -10 -10 -10 -8 ------------ Run | Yrd Mat Min Sub Mat Used RIF Installer . | . . . . . Robots Hacked . | . . . . . Non-combat . | . . . . . Combat . | . . . . . Robot Hacks Applied . | . . . . . Relay Couplers Released . | . . . . . Fabnet Peak Effective % . | . . . . . Robots Rewired . | . . . . . Allies Hacked . | . . . . . Hacks Repelled . | . . . . . Allies | -11 -10 -10 -10 -8 -------- Run | Yrd Mat Min Sub Mat Total Allies . | . . . . . Largest Group . | . . . . . Highest-Rated Group . | . . . . . Highest-Rated Ally . | . . . . . Total Orders . | . . . . . Ally Attacks . | . . . . . Total Damage . | . . . . . Kills . | . . . . . Allies Corrupted . | . . . . . Allies Melted . | . . . . . Intel | -11 -10 -10 -10 -8 ------- Run | Yrd Mat Min Sub Mat Active Infowar (turns) 1601 | . . 284 1102 215 Sensors 1601 | . . 284 1102 215 Robot Analysis Total . | . . . . . Derelict Logs Recovered 1 | . . . 1 . Drone Launches . | . . . . . Drone Recoveries . | . . . . . Exploration | -11 -10 -10 -10 -8 ------------- Run | Yrd Mat Min Sub Mat Turns Passed 1990 | 61 196 354 1102 277 Spaces Moved 1221 | 56 133 144 716 172 Core 108 | 28 . . . 80 Treads . | . . . . . Legs 1113 | 28 133 144 716 92 Wheels . | . . . . . Hover . | . . . . . Flight . | . . . . . Fastest Speed 50 | 50 120 120 120 50 Average Speed 123 | 85 120 120 125 130 Slowest Speed 200 | 120 120 120 190 200 Overloaded Moves . | . . . . . Propulsion Burnouts . | . . . . . Robots Hopped . | . . . . . Potential Cave-ins . | . . . . . Cave-ins Triggered . | . . . . . Exploration Rate (%) 27 | 3 27 34 57 18 Regions Visited 4 Branch Regions 2 Pre-discovered Areas . | . . . . . Known Exits Taken . | . . . . . Unknown Exits Taken 4 | 1 1 1 1 . Scrap Searched . | . . . . . Spaces Dug 4 | . . . . 4 Terrain Destroyed 8 | . . . . 8 Melee 4 | . . . . 4 Projectile 4 | . . . . 4 AOE . | . . . . . Terrain Rammed . | . . . . . Walls Destroyed . | . . . . . Machines Disabled . | . . . . . Actions | -11 -10 -10 -10 -8 --------- Run | Yrd Mat Min Sub Mat Total 1559 | 69 148 305 844 193 Wait 220 | . . 143 77 . Move 1217 | 55 132 143 715 172 Hop . | . . . . . Pick Up 21 | 8 4 2 6 1 Fast Attach . | . . . . . Attach 17 | 6 . 2 6 3 Detach . | . . . . . Swap 2 | . 1 . 1 . Drop . | . . . . . Fire 76 | . 10 14 39 13 Melee 4 | . . . . 4 Ram . | . . . . . Kick 2 | . 1 1 . . Crush . | . . . . . Escape Stasis . | . . . . . Rewire . | . . . . . Trap . | . . . . . Miscellaneous . | . . . . . Route ------- -11/Scrapyard -10/Materials -10/Mines (discovered 3 exits: [*Mat x2] / *Sub) -10/Subcaves (discovered 3 exits: *Mat x2 / [*Rec]) -8/Materials History --------- Turn | Location | Event 5 | -11/Scrapyard | Discovered new exit (range 16) 62 | -11/Scrapyard | Entered Materials 240 | -10/Materials | Discovered new exit (range 10) 258 | -10/Materials | Entered Mines 302 | -10/Mines | Build established: Mutant 314 | -10/Mines | Excavation squad dispatched 314 | -10/Mines | A large section of the Mines collapsed 451 | -10/Mines | Discovered new exit (range 12) 501 | -10/Mines | Discovered new exit (range 9) 606 | -10/Mines | Discovered new exit (range 6) 612 | -10/Mines | Entered Subcaves 636 | -10/Subcaves | Discovered new exit (range 14) 663 | -10/Subcaves | Ambushed by swarm of Subdwellers 857 | -10/Subcaves | A swath of the cavern ceiling suddenly collapsed 1037 | -10/Subcaves | Shifting Twisted Machinery released Sub. Power Source 1151 | -10/Subcaves | Discovered new exit (range 16) 1218 | -10/Subcaves | Lost 3 parts (2n1w) 1245 | -10/Subcaves | Discovered new exit (range 13) 1255 | -10/Subcaves | Core integrity fell below 50% 1317 | -10/Subcaves | Visited Clippyterm 1320 | -10/Subcaves | Learned Factory trap positions 1320 | -10/Subcaves | Learned Research security intel 1528 | -10/Subcaves | Shifting Twisted Machinery released Scrap Shield 1714 | -10/Subcaves | Entered Materials 1714 | -8/Materials | Evolved 4 slots: Propulsion x1, Utility x2, Weapon x1 1938 | -8/Materials | Core integrity fell below 50% 1944 | -8/Materials | Core integrity fell below 20% 1973 | -8/Materials | Lost 9 parts (1p2n3u3w) 1991 | -8/Materials | Destroyed by G-47 Trooper with Particle Gun Last Messages --------------- 01936_ Critical hit (Burn: +37). 01936_ Mak. Leg destroyed. 01939_ W-25 Informer distress signal alerts nearby ally. 01939_ K-01 Serf collects debris. 01940_ Critical hit (Burn: +37). 01941_ Overheating: Sml. Storage Unit damaged (-6). 01942_ Overheating: Core damaged (-82). 01942_ Sml. Storage Unit destroyed. 01943_ K-01 Serf collects debris. 01945_ Overheating: Energy bleed (-24). 01945_ Critical hit (Burn: +37). 01958_ Acquired Katana. 01963_ Connecting with Terminal... 01963_ Current location identified: Materials >>Layout(Zone) Retrieving Zone 1N layout... Downloaded map data. 01989_ Connecting with Terminal... Map ----- +----------------------------------------------------+ | | | | | | | | | | | | | | | ??????????????????????????????? | | ??????????????????????????????? | | ????????????????????#######???? | | ????????????????????##!!!!##??? | | ????????########??###! !#??? | | ????????# ####"" #??? | | ????????# T # ##### #??? | | ????????# + " ##??#g #??? | | ????????# # "#??# #??? | | ????????# / ## ###??# #??? | | ????????# ## #????# #??? | | ????????######### #???## ##?? | | ????????????????# #???# #?? | | ????????????????# #???# #?? | | ????????????????# #???# T #?? | | ????????????????# #???# #?? | | ????????????????# #???# =#?? | | ????????????????# ####### ;##?? | | ????????????????# g gg @##??? | | ????????????????# g Y #???? | | ????????????????# """ #???? | | ????????????????# """ #???? | | ????????????????# """ #???? | | ????????????????# k #???? | | ????????????????# #???? | | ????????????????# """ #???? | | ????????????????# ! """ #???? | | ????????????????# """ #???? | | ???????????????## #???? | | ??????????????##" #???? | | ??????????????# """ #???? | | ??????????????# """ #???? | | ??????????????# """ #???? | | ?????????###### #???? | | ??? #???? | | ????? ####### ########???? | | ???????????????# # #???? | | ???????????????#* / """#???? | | ??????????????##%| # """#???? | | ??????????????#"! " """#???? | | ??????????????## % # #???? | | ???????????????# # #???? | | ???????????????# #?######???? | +----------------------------------------------------+ Best States ------------- Heat Dissipation 31 Energy Generation 15 Energy Capacity 200 Matter Stores 300 Matter Capacity 300 Sight Range 16 Robot Scan Range 14 Terrain Scan Density 10 Armor Coverage 800 Resistance: KI 20 Resistance: TH 20 Resistance: EX 20 Resistance: EM 20 Resistance: I 20 Resistance: S 20 Resistance: P 20 Evasion (%) 55 Offensive Hacking 10 Item Schematics ----------------- None Robot Schematics ------------------ None Fabricated ------------ Nothing Repaired ---------- Nothing Alien Tech Used ----------------- None Achievements -------------- None Challenges ------------ None Game ------ Seed DisruptionCompositeStripper Manual? 0 Play Time 00:17:44 Cumulative 34.7 hours Start 2025.06.10 @ 19:14:06 End 2025.06.10 @ 19:29:54 Sessions 1 Manual Loads 0 Difficulty Adventurer Special Mode None Game No. 45 Rogue 0 Adventurer 11 Explorer 34 Win Type - Total 1 Types 1/0/0/0/0/0/0/0/0/0 Lore% 15 Gallery% 40 Achievement% 40 Wizard Run 0 Options --------- Layout 1 ASCII 0 Keyboard 0 Movement Mouse Keybinds 0 Fullscreen 1 Font 42/SmallcapsGlow Map View 52x41 Zoom Use 0% Tactical HUD 1 Map Filters NONE Filters NONE Steam 1 RUN: ec6a8f51-dadd-4e4a-9da2-92039f6b6163